bitfinex/quotes_ETHUSD_20260103
["timestamp","ask_amount","ask_price","bid_price","bid_amount"]
[1767431433611,0.00180056,3098.3,3097.9,3.09749045]
[1767431433940,0.00180056,3098.3,3098.0,0.95536478]
[1767431434324,0.00180056,3098.3,3098.1,3.22778477]
[1767431434724,0.001,3098.6,3098.1,5.47827522]
[1767431435038,0.001,3098.6,3098.1,6.45556954]
[1767431435246,2.41962676,3098.6,3098.1,3.22778477]
[1767431437113,2.41962676,3098.6,3098.1,4.27871667]
[1767431440247,2.41962676,3098.6,3098.1,3.22778477]
[1767431443758,2.41962676,3098.6,3097.9,6.32625482]
[1767431443950,2.41962676,3098.6,3098.0,6.45577792]
[1767431444852,0.001,3098.6,3098.1,2.25049045]
[1767431445830,0.001,3098.6,3098.2,3.22768058]
[1767431447865,0.001,3098.6,3098.2,6.45536116]
[1767431448075,0.001,3098.6,3098.2,6.48763796]
[1767431448535,0.001,3098.6,3098.3,2.25049045]
[1767431450168,0.001,3098.6,3098.4,4.07447224]
[1767431454643,0.001,3098.6,3098.4,0.847]
[1767431457766,2.41962676,3098.6,3098.1,3.22772065]
[1767431457962,2.41962676,3098.6,3098.1,4.07472065]
[1767431459569,2.41962676,3098.6,3098.1,3.22772065]
[1767431460360,2.41962676,3098.6,3098.0,4.07684079]
[1767431460676,2.41962676,3098.6,3098.0,0.002]
[1767431460677,2.98450546,3098.6,3098.0,0.002]
[1767431460882,2.32383607,3098.5,3098.0,0.002]
[1767431461877,2.32383607,3098.5,3097.9,0.00080064]
[1767431461878,2.32383607,3098.2,3097.1,5.48775181]
[1767431462171,2.32383607,3098.1,3097.3,0.84980048]
[1767431462335,2.32383607,3098.1,3097.3,3.10881664]
[1767431462536,2.32383607,3098.1,3097.4,2.25901616]
[1767431463973,0.00080064,3098.3,3097.7,2.25901616]
[1767431464171,0.00080064,3098.3,3097.9,2.25901616]
[1767431464976,2.32463671,3098.3,3097.8,0.847]
[1767431467059,2.32463671,3098.3,3097.9,3.22799315]
[1767431470092,0.00080064,3098.3,3097.9,3.22799315]
[1767431470266,0.00080064,3098.3,3098.0,0.03227888]
[1767431470462,0.00080064,3098.3,3097.9,3.22799315]
[1767431471676,0.00080064,3098.3,3097.9,6.44341807]
[1767431475299,0.00080064,3098.3,3097.9,9.67141122]
[1767431476195,0.00080064,3098.3,3098.0,2.29129504]
[1767431476379,0.00180064,3098.3,3098.0,2.29129504]
[1767431477282,0.00180064,3098.3,3098.1,3.22778477]
[1767431477486,0.00180064,3098.3,3098.1,6.45713375]
[1767431479606,0.00180064,3098.3,3098.1,4.19811759]
[1767431482293,0.001,3098.6,3098.2,2.25901616]
[1767431483400,0.001,3098.6,3098.1,4.19811759]
[1767431485307,0.001,3098.6,3098.1,7.42590236]
[1767431485509,0.001,3098.6,3098.3,3.22757641]
[1767431489085,0.001,3098.6,3098.2,4.19612466]
[1767431494312,0.001,3098.6,3098.2,3.22763281]
[1767431503729,0.001,3098.6,3098.1,4.20007065]
[1767431504031,2.38468212,3098.6,3098.1,0.002]
[1767431504232,2.38468212,3098.6,3098.1,3.22973698]
[1767431505837,2.38468212,3098.6,3098.1,0.002]
[1767431508739,2.94606794,3098.6,3098.1,0.002]
[1767431510237,2.38368212,3098.5,3098.1,0.002]
[1767431513817,2.38368212,3098.4,3098.1,0.002]
[1767431514517,2.38368212,3098.3,3098.1,0.002]
[1767431523252,2.32301804,3098.2,3097.8,0.002]
[1767431523430,2.56138625,3098.2,3097.8,0.002]
[1767431523954,2.56138625,3098.2,3098.0,0.002]
[1767431530360,5.78908769,3098.2,3098.0,0.002]
[1767431530868,2.32301804,3098.1,3098.0,0.002]
[1767431532134,2.9020072,3098.1,3098.0,0.002]
[1767431533394,2.9020072,3098.1,3097.8,0.002]
[1767431533395,2.32301804,3098.0,3097.8,0.002]
[1767431535248,5.55091586,3098.0,3097.8,0.002]
[1767431535762,5.55091586,3098.0,3097.3,0.00280048]
[1767431535763,2.32301804,3097.9,3097.3,0.00280048]
[1767431535967,2.87810963,3097.8,3097.3,0.00280048]
[1767431537986,2.32301804,3097.7,3097.3,0.00280048]
[1767431541179,2.32301804,3097.6,3097.3,0.00280048]
[1767431543373,2.32301804,3097.5,3096.9,0.002]
[1767431543582,2.32301804,3097.4,3096.9,0.002]
[1767431545494,2.32301804,3097.2,3096.9,0.002]
[1767431546301,2.32301804,3097.4,3096.9,0.002]
[1767431546581,2.32301804,3097.4,3096.5,0.002]
[1767431546752,2.32301804,3097.0,3096.5,0.002]
[1767431547665,2.32301804,3096.8,3096.5,0.002]
[1767431548557,2.32301804,3096.7,3096.2,0.00280072]
[1767431550890,3.22934831,3096.6,3096.5,0.002]
[1767431551183,3.22934831,3096.6,3096.2,0.00280072]
[1767431552596,5.68484849,3096.6,3096.2,0.00280072]
[1767431552761,0.89141245,3096.5,3096.2,0.00280072]
[1767431552961,4.12088991,3096.5,3096.2,0.00280072]
[1767431553711,0.89141245,3096.5,3096.2,0.00280072]
[1767431554070,4.12088947,3096.5,3096.2,0.00280072]
[1767431555096,0.89141245,3096.5,3096.2,0.00280072]
[1767431555308,3.22938543,3096.6,3096.2,0.00280072]
[1767431557201,6.4585116,3096.7,3096.2,0.00280072]
[1767431557393,8.91401178,3096.7,3096.2,0.00280072]
[1767431558701,3.2294526,3096.5,3096.2,0.00280072]
[1767431560500,6.4589052,3096.5,3096.2,0.00280072]
[1767431560706,0.89144054,3096.4,3096.2,0.00280072]
[1767431562213,4.12100176,3096.4,3096.2,0.00280072]
[1767431566004,0.89144054,3096.4,3096.2,0.00280072]
[1767431566184,3.22950122,3096.5,3096.2,0.00280072]
[1767431568011,8.91401814,3096.7,3096.2,0.00280072]
[1767431568185,0.001,3096.6,3096.2,0.00280072]
[1767431580015,2.35489251,3096.6,3096.2,0.00280072]
[1767431582902,3.2294526,3096.5,3096.2,0.00280072]
[1767431583220,2.91232702,3096.4,3095.4,2.28267933]
[1767431583430,2.35389251,3096.1,3095.4,2.28267933]
[1767431583626,2.73302074,3096.2,3095.6,2.28267933]
[1767431584125,2.73302074,3096.2,3096.1,0.002]
[1767431584294,3.29763559,3096.2,3095.6,2.28267933]
[1767431584820,5.6515281,3096.2,3095.6,2.28267933]
[1767431585117,3.22986983,3096.1,3095.6,2.28267933]
[1767431585321,5.58376234,3096.1,3095.3,5.51413972]
[1767431585489,5.58376234,3096.1,3095.3,5.51417034]
[1767431585829,6.79496082,3096.1,3095.3,5.51417034]
[1767431586127,6.79496082,3096.1,3095.4,3.23059899]
[1767431587016,6.79496082,3096.1,3095.4,5.51327832]
[1767431587230,3.56509099,3096.1,3095.5,3.23049437]
[1767431587388,2.35389251,3096.1,3095.5,3.23049437]
[1767431587594,2.35389251,3096.1,3095.5,5.5131737]
[1767431588104,5.58377051,3096.1,3095.5,2.28267933]
[1767431588496,3.79441762,3096.2,3095.5,2.28267933]
[1767431590531,3.79441762,3096.2,3095.5,5.51316946]
[1767431590720,0.00080072,3096.3,3095.6,2.31498324]
[1767431591426,0.001,3096.2,3095.6,2.31498324]
[1767431591817,0.001,3096.2,3095.6,2.28267933]
[1767431593140,0.001,3096.2,3095.8,2.28267933]
[1767431593334,0.001,3096.2,3095.7,3.23028717]
[1767431593641,0.001,3096.2,3095.7,3.15701805]
[1767431593809,0.001,3096.2,3095.8,2.28267933]
[1767431595543,0.001,3096.2,3095.9,2.28267933]
[1767431597320,0.001,3096.2,3096.0,2.28267933]
[1767431600017,0.001,3096.2,3095.8,5.51282521]
[1767431601312,1.5834088,3096.1,3095.8,5.51282521]
[1767431606155,1.5834088,3096.1,3095.8,5.51482521]
[1767431611258,1.5834088,3096.1,3095.8,2.28467933]
[1767431615054,1.5834088,3096.1,3095.8,0.002]
[1767431616440,0.001,3096.2,3095.8,0.002]
[1767431617153,2.47984949,3096.1,3095.8,0.002]
[1767431618431,1.5834088,3096.0,3095.8,0.002]
[1767431619562,4.06325829,3096.0,3095.8,0.002]
[1767431620362,1.5834088,3096.0,3095.8,0.002]
[1767431621266,1.56347804,3096.0,3095.8,0.002]
[1767431622063,1.54354729,3096.0,3095.8,0.002]
[1767431623061,1.52361655,3096.0,3095.8,0.002]
[1767431623666,2.47984949,3095.9,3095.8,0.002]
[1767431623848,2.86036536,3095.9,3095.4,0.002]
[1767431624171,2.45991876,3095.9,3095.4,0.002]
[1767431624862,2.45991876,3095.9,3095.4,3.23257147]
[1767431625041,2.45991876,3095.9,3095.4,0.002]
[1767431627066,4.00346604,3095.8,3095.4,0.002]
[1767431627856,1.52361655,3095.8,3095.4,5.57907231]
[1767431628051,1.52361655,3095.8,3095.4,6.54502912]
[1767431629760,1.52361655,3095.8,3095.4,3.31449626]
[1767431630160,4.7538249,3095.8,3095.4,3.31449626]
[1767431630360,4.7538249,3095.8,3095.4,0.002]
[1767431631174,7.23367439,3095.8,3095.4,0.002]
[1767431631350,2.47984949,3095.7,3095.4,0.002]
[1767431632181,1.52361655,3095.8,3095.4,0.002]
[1767431633576,5.47718671,3095.8,3095.4,0.002]
[1767431638789,5.47718671,3095.8,3095.4,2.34853945]
[1767431638963,4.75383024,3095.8,3095.4,2.34853945]
[1767431641481,3.23007849,3095.9,3095.4,2.34853945]
[1767431642693,0.001,3096.1,3095.5,2.32609382]
[1767431642988,3.23088189,3096.1,3095.5,2.32609382]
[1767431643694,1.52361655,3095.8,3095.5,2.32609382]
[1767431643990,1.52361655,3095.8,3095.5,2.88204292]
[1767431658106,1.52361655,3095.8,3095.6,2.32609382]
[1767431658472,0.001,3095.9,3095.6,2.32609382]
[1767431660475,1.52361655,3095.8,3095.6,2.32609382]
[1767431662818,1.52361655,3095.8,3095.6,5.55648108]
[1767431663903,0.001,3095.9,3095.6,5.55648108]
[1767431664105,0.001,3095.9,3095.6,6.43557705]
[1767431664488,0.001,3095.9,3095.7,2.32609382]
[1767431664688,0.001,3095.9,3095.7,5.55634363]
[1767431668897,0.001,3095.9,3095.8,2.32609382]
[1767431670287,0.001,3095.9,3095.7,3.23024981]
[1767431670506,0.001,3095.9,3095.8,0.96501159]
[1767431670915,0.001,3095.9,3095.8,4.19519441]
[1767431673497,0.001,3095.9,3095.8,0.96501159]
[1767431680295,0.001,3095.9,3095.7,3.23023942]
[1767431680596,0.001,3095.9,3095.8,0.002]
[1767431692007,2.4490668,3095.9,3095.5,4.08044477]
[1767431694309,2.4490668,3095.9,3095.5,4.07944477]
[1767431695720,2.4490668,3095.9,3095.5,4.07744477]
[1767431696410,2.4490668,3095.9,3095.5,4.07944477]
[1767431698137,2.4490668,3095.9,3095.5,0.002]
[1767431698441,3.01706173,3095.9,3095.5,0.002]
[1767431700340,2.4490668,3095.9,3095.5,0.002]
[1767431703943,0.001,3096.1,3095.5,2.46362491]
[1767431704943,0.001,3096.2,3095.8,2.42931996]
[1767431705146,0.001,3096.2,3095.9,2.42931996]
[1767431705319,1.82409597,3096.5,3096.0,6.45994832]
[1767431705521,0.00180072,3096.6,3096.1,3.31824679]
[1767431707345,0.00180072,3096.6,3096.2,3.22976551]
[1767431707548,0.00180072,3096.6,3096.2,6.45953102]
[1767431708153,0.00180072,3096.6,3096.2,8.88885098]
[1767431710751,2.73365524,3096.4,3095.9,0.0008008]
[1767431711055,2.09746149,3096.3,3095.9,0.0008008]
[1767431711253,2.09746149,3096.3,3095.4,0.002]
[1767431711554,2.09826229,3096.3,3095.4,0.849]
[1767431711755,2.09826229,3096.3,3095.5,3.23249588]
[1767431711934,2.09826229,3096.3,3095.5,0.002]
[1767431711935,1.82329517,3096.2,3095.5,0.002]
[1767431712127,1.82329517,3096.0,3095.5,0.002]
[1767431717742,1.82329517,3095.9,3095.5,0.002]
[1767431718054,1.82329517,3095.8,3095.5,0.002]
[1767431721104,1.82329517,3095.7,3095.5,0.002]
[1767431723955,3.23012166,3095.9,3095.5,0.002]
[1767431724162,0.50534168,3095.8,3095.5,0.002]
[1767431726144,3.73552518,3095.8,3095.5,0.002]
[1767431726677,3.73552518,3095.8,3095.4,0.002]
[1767431726678,1.81849453,3095.5,3094.9,0.00280056]
[1767431727968,1.81849453,3095.5,3094.5,0.002]
[1767431728142,1.81929509,3095.3,3094.5,0.002]
[1767431728343,1.81849453,3095.1,3094.5,0.002]
[1767431728546,3.23101777,3095.0,3094.5,0.002]
[1767431729143,1.81929509,3095.3,3094.5,2.43131996]
[1767431729372,0.848,3095.2,3094.5,2.43131996]
[1767431730275,0.00080056,3095.3,3094.6,2.36270834]
[1767431730573,0.84880056,3095.3,3094.6,2.36270834]
[1767431730874,0.59059793,3095.3,3094.6,2.36270834]
[1767431731241,0.00080056,3095.3,3094.6,2.36270834]
[1767431731647,0.00080056,3095.3,3094.6,2.39502269]
[1767431732871,0.00080056,3095.3,3094.6,2.36270834]
[1767431733053,0.00080056,3095.3,3094.7,2.36270834]
[1767431738148,0.00080056,3095.3,3094.7,1.86320834]
[1767431741366,5.54880352,3095.2,3094.6,0.002]
[1767431742285,8.77961251,3095.2,3094.6,0.002]
[1767431742987,2.31799453,3095.1,3094.6,0.002]
[1767431744491,6.46161798,3095.2,3094.6,2.36470834]
[1767431744492,3.23080899,3095.2,3094.6,2.36470834]
[1767431745491,6.46161798,3095.2,3094.6,2.36470834]
[1767431745695,4.55830234,3095.2,3094.6,2.36470834]
[1767431745900,7.78911133,3095.2,3094.6,2.36470834]
[1767431747788,8.63711133,3095.2,3094.6,2.36470834]
[1767431750167,10.95510586,3095.2,3094.6,0.002]
[1767431750392,2.31799453,3095.1,3094.6,0.002]
[1767431750689,2.73365524,3094.7,3094.2,2.36470834]
[1767431750892,2.73445588,3094.7,3094.2,2.19610642]
[1767431751188,0.00080064,3094.7,3094.2,2.19610642]
[1767431752185,0.16863359,3094.6,3094.2,2.19610642]
[1767431753095,0.83182233,3094.6,3094.2,2.19610642]
[1767431753292,0.83182233,3094.6,3094.1,0.002]
[1767431754270,4.06330776,3094.6,3094.1,0.002]
[1767431755082,6.40477014,3094.6,3094.1,0.002]
[1767431755981,0.83182233,3094.6,3094.1,2.36470834]
[1767431756179,0.16863359,3094.6,3094.1,2.36470834]
[1767431756383,3.40008615,3094.6,3094.1,2.36470834]
[1767431758302,0.16863359,3094.6,3094.1,2.36470834]
[1767431759885,3.23317428,3094.7,3094.1,2.36470834]
[1767431760207,5.58158137,3094.7,3094.1,2.36470834]
[1767431761803,2.35020773,3094.7,3094.1,5.59665191]
[1767431762804,5.58154254,3094.7,3094.1,2.36470834]
[1767431762991,6.22449679,3094.7,3094.1,2.36470834]
[1767431768114,0.00180064,3094.7,3094.2,2.28828017]
[1767431768811,0.00180064,3094.7,3094.2,2.25596164]
[1767431770006,0.00180064,3094.7,3094.2,5.48779851]
[1767431772608,0.00180064,3094.7,3094.3,2.25596164]
[1767431774187,0.00180064,3094.7,3094.4,2.25596164]
[1767431777820,0.00180064,3094.7,3094.1,3.23391153]
[1767431778117,0.00180064,3094.7,3094.2,2.25596164]
[1767431782191,2.35020773,3094.7,3094.1,3.23393539]
[1767431782824,2.35020773,3094.7,3094.1,5.48989703]
[1767431783193,0.00180064,3094.7,3094.1,5.48989703]
[1767431785501,0.00180064,3094.7,3094.2,2.25596164]
[1767431785703,0.00180064,3094.7,3094.3,2.25596164]
[1767431787997,0.00180064,3094.7,3094.3,5.48767425]
[1767431788198,0.00180064,3094.7,3094.2,4.10419343]
[1767431791434,0.00180064,3094.7,3094.2,3.23180797]
[1767431800435,0.00180064,3094.7,3094.1,5.48987936]
[1767431803242,2.39879813,3094.7,3094.1,3.23391772]
[1767431804225,2.39879813,3094.7,3094.1,0.002]
[1767431806947,5.63016363,3094.7,3094.1,0.002]
[1767431807249,2.39699749,3094.6,3094.1,0.002]
[1767431809345,2.39699749,3094.5,3094.1,0.002]
[1767431816255,0.00180064,3094.7,3094.1,2.39271762]
[1767431817558,2.39699749,3094.6,3094.1,0.002]
[1767431821561,2.39799749,3094.6,3094.1,0.002]
[1767431822360,2.3665749,3094.5,3094.1,0.002]
[1767431822757,2.3665749,3094.5,3094.0,0.002]
[1767431822941,2.3665749,3094.5,3093.7,0.0008008]
[1767431824239,2.3665749,3094.3,3093.7,0.0008008]
[1767431826139,5.59841547,3094.3,3093.7,0.0008008]
[1767431826435,0.88300597,3094.2,3093.7,0.0008008]
[1767431826848,3.24958087,3094.2,3093.7,0.0008008]
[1767431827243,0.88300597,3094.2,3093.7,0.0008008]
[1767431827443,3.72795141,3094.6,3093.7,2.36208936]
[1767431827444,6.94253391,3094.6,3093.7,2.36208936]
[1767431828459,6.09453391,3094.6,3093.9,2.32896481]
[1767431828667,6.09453391,3094.6,3093.9,2.36128647]
[1767431828854,1.01756793,3094.5,3093.9,2.36128647]
[1767431829453,1.01756793,3094.5,3093.9,2.32896481]
[1767431830041,0.001,3094.2,3093.9,2.32896481]
[1767431831538,0.001,3094.2,3093.7,2.32976561]
[1767431831855,0.001,3094.2,3093.7,0.0008008]
[1767431832057,0.23775749,3094.2,3093.7,0.0008008]
[1767431833069,2.3665749,3094.1,3093.7,0.0008008]
[1767431835148,5.59863695,3094.0,3093.7,0.0008008]
[1767431835943,0.848,3094.1,3093.7,0.0008008]
[1767431836569,2.3675749,3094.2,3093.7,0.0008008]
[1767431836746,0.001,3094.2,3093.7,2.32976561]
[1767431837340,0.40907505,3094.2,3093.7,2.32976561]
[1767431838256,0.001,3094.2,3093.8,2.32896481]
[1767431840352,0.001,3094.2,3093.9,2.32896481]
[1767431841259,0.001,3094.2,3094.0,2.32896481]
[1767431856221,0.001,3094.2,3094.1,2.4627189]
[1767431868475,0.001,3094.2,3093.9,2.4647189]
[1767431868700,2.28214146,3094.2,3093.9,0.002]
[1767431868898,2.50935561,3094.1,3093.7,0.0008008]
[1767431870176,5.51320351,3094.0,3093.7,0.0008008]
[1767431871095,2.28114146,3093.9,3093.7,0.0008008]
[1767431872502,5.51331347,3093.9,3093.7,0.0008008]
[1767431874908,3.23217201,3093.9,3093.7,0.0008008]
[1767431875211,0.3232172,3093.8,3093.7,0.0008008]
[1767431877607,3.23210868,3094.0,3093.7,0.0008008]
[1767431878107,5.51325014,3094.0,3093.7,0.0008008]
[1767431879321,2.28114146,3094.0,3093.7,0.0008008]
[1767431879684,5.51320353,3094.0,3093.7,0.0008008]
[1767431880501,3.46021257,3094.1,3093.7,0.0008008]
[1767431880703,0.9843492,3094.0,3093.7,0.0008008]
[1767431881108,4.21641676,3094.0,3093.7,0.0008008]
[1767431882111,2.30239826,3093.9,3093.7,0.0008008]
[1767431882316,2.30239826,3093.9,3093.6,0.002]
[1767431882815,2.30239826,3093.7,3093.2,0.002]
[1767431883016,4.08047995,3093.6,3093.0,2.25638671]
[1767431883697,0.848,3093.5,3093.0,2.25638671]
[1767431884010,3.23247995,3093.6,3093.0,2.25638671]
[1767431884215,0.76774993,3093.9,3093.0,2.25638671]
[1767431884411,0.848,3093.9,3093.2,2.25438671]
[1767431885990,4.08023451,3093.9,3093.2,2.25438671]
[1767431886901,4.08023451,3093.9,3093.5,0.002]
[1767431887299,4.08123451,3093.9,3093.5,0.002]
[1767431889095,3.23323451,3093.9,3093.5,0.002]
[1767431889399,4.08123451,3093.9,3093.5,0.002]
[1767431890688,0.001,3093.9,3093.5,0.002]
[1767431890894,0.73133008,3093.8,3093.5,2.25638671]
[1767431892817,3.96367856,3093.8,3093.5,0.002]
[1767431896813,2.30239826,3093.7,3093.1,0.002]
[1767431896999,3.25224079,3093.6,3093.1,0.002]
[1767431898299,2.30239826,3093.6,3093.1,0.002]
[1767431899928,5.53489195,3093.6,3093.1,0.002]
[1767431900223,2.30239826,3093.6,3093.1,0.002]
[1767431900828,5.53488889,3093.6,3093.1,0.002]
[1767431902827,3.23238852,3093.7,3093.1,0.002]
[1767431903032,0.94984555,3093.6,3093.1,2.25638671]
[1767431903598,1.79784555,3093.6,3093.1,2.25638671]
[1767431905314,3.23258445,3093.5,3093.1,2.25638671]
[1767431906426,5.03034354,3093.6,3093.1,2.25638671]
[1767431907514,4.18234354,3093.6,3093.1,2.25638671]
[1767431907715,5.03034354,3093.6,3093.1,2.25638671]
[1767431908237,3.23249799,3093.6,3093.1,2.25638671]
[1767431908760,0.848,3093.7,3093.1,2.25638671]
[1767431908761,4.08042216,3093.7,3093.1,2.25638671]
[1767431910733,3.23242216,3093.7,3093.2,2.49827545]
[1767431911031,3.23231387,3093.8,3093.2,2.49827545]
[1767431911634,0.001,3093.7,3093.2,2.49827545]
[1767431916025,0.001,3093.7,3093.3,2.49827545]
[1767431920748,0.001,3093.7,3093.3,2.50027545]
[1767431924547,0.001,3093.7,3093.4,2.49827545]
[1767431924748,0.001,3093.7,3093.4,0.03232688]
[1767431924942,0.001,3093.7,3093.3,0.03432793]
[1767431925523,0.001,3093.7,3093.3,0.002]
[1767431925917,2.40492001,3093.7,3093.3,0.002]
[1767431926231,0.001,3093.7,3093.3,0.002]
[1767431926635,0.001,3093.7,3093.3,3.07378995]
[1767431926813,0.001,3093.7,3093.3,5.73300014]
[1767431927015,0.001,3093.9,3093.4,2.49827545]
[1767431927655,0.001,3093.9,3093.4,2.53060233]
[1767431928438,0.0008008,3094.1,3093.5,2.49827545]
[1767431928632,0.0008008,3094.1,3093.6,5.7307554]
[1767431928938,0.0008008,3094.1,3093.7,0.57307554]
[1767431930734,0.001,3093.9,3093.7,3.80543309]
[1767431931664,0.001,3093.9,3093.7,0.57307554]
[1767431931860,0.001,3093.9,3093.4,2.49827545]
[1767431932034,0.001,3093.9,3093.5,3.23252033]
[1767431936732,2.40492001,3093.9,3093.3,5.73298879]
[1767431936969,0.001,3093.9,3093.3,2.50027545]
[1767431937262,0.001,3093.9,3093.4,3.4827005]
[1767431938671,0.001,3093.9,3093.4,0.25002755]
[1767431939035,0.001,3093.9,3093.5,0.002]
[1767431939234,2.40492001,3093.9,3093.5,0.002]
[1767431940865,2.25789597,3093.7,3093.5,0.002]
[1767431941367,3.13023212,3093.7,3093.5,0.002]
[1767431942462,0.87233615,3093.7,3093.5,0.002]
[1767431943584,4.10472237,3093.7,3093.5,0.002]
[1767431951474,4.10472237,3093.7,3093.1,0.002]
[1767431951475,2.25789597,3093.6,3093.1,0.002]
[1767431951772,0.95950046,3093.5,3093.0,0.002]
[1767431952652,6.4653779,3093.4,3093.0,0.002]
[1767431953053,3.23268895,3093.4,3093.0,0.002]
[1767431955376,4.19210504,3093.5,3093.0,2.27215313]
[1767431955377,4.19213254,3093.5,3093.0,2.27215313]
[1767431958565,1.0530526,3093.4,3093.0,2.27215313]
[1767431960358,3.23258594,3093.5,3093.0,2.27215313]
[1767431961753,2.25789597,3093.4,3093.0,0.002]
[1767431962557,3.23258594,3093.5,3093.0,2.27215313]
[1767431968389,8.72306785,3093.5,3093.0,0.002]
[1767431968598,2.25789597,3093.4,3093.0,0.002]
[1767431968801,3.13020275,3093.3,3093.0,0.002]
[1767431969891,3.23258594,3093.5,3093.0,2.35222637]
[1767431970761,3.23227099,3093.8,3093.0,2.35222637]
[1767431970966,7.3125447,3093.8,3093.0,2.35222637]
[1767431971895,2.36895169,3093.9,3093.0,2.35222637]
[1767431971896,0.001,3093.9,3093.1,2.35022637]
[1767431972058,0.001,3093.9,3093.3,2.35022637]
[1767431972698,0.001,3093.9,3093.5,2.35022637]
[1767431974569,0.16870817,3094.8,3094.2,2.35022637]
[1767431974770,0.16870817,3094.8,3094.3,0.00080072]
[1767431974994,3.23119746,3094.9,3094.3,0.27466772]
[1767431975169,2.36895169,3095.2,3094.3,0.00080072]
[1767431975371,3.23201896,3095.0,3094.3,0.00080072]
[1767431975572,0.001,3095.0,3094.3,0.00080072]
[1767431976179,0.001,3095.0,3094.4,2.35022637]
[1767431978103,2.36895169,3095.0,3094.4,2.35022637]
[1767431978703,3.23112216,3094.9,3094.4,2.35022637]
[1767431982298,5.59999071,3095.0,3094.4,2.9085089]
[1767431982601,3.23203902,3095.0,3094.4,2.9085089]
[1767431983599,0.001,3094.9,3094.4,2.9085089]
[1767431990721,0.001,3094.9,3094.4,2.9105089]
[1767431996207,0.001,3094.9,3094.4,2.35222637]
[1767431999983,0.001,3094.9,3094.5,2.42017159]
[1767432002418,2.31769561,3094.9,3094.4,0.002]
[1767432002620,5.54792218,3094.8,3094.4,0.002]
[1767432003325,3.23215012,3094.9,3094.4,0.002]
[1767432003627,3.23215012,3094.9,3094.4,2.42217159]
[1767432005524,0.001,3094.9,3094.4,2.42217159]
[1767432011709,0.87906418,3094.9,3094.4,0.002]
[1767432011908,2.31769561,3094.9,3094.4,0.002]
[1767432013232,3.23122657,3094.8,3094.4,0.002]
[1767432013435,5.54792218,3094.8,3094.4,0.002]
[1767432014116,8.77914875,3094.8,3094.4,0.002]
[1767432014311,5.54792218,3094.8,3094.4,0.002]
[1767432014513,0.87800731,3094.7,3094.4,0.002]
[1767432015537,4.10939625,3094.7,3094.4,0.002]
[1767432016345,7.34078519,3094.7,3094.4,0.002]
[1767432016519,9.6574808,3094.7,3094.4,0.002]
[1767432016950,6.42609186,3094.7,3094.4,0.002]
[1767432017130,0.96573477,3094.6,3094.4,0.002]
[1767432018944,6.51387603,3094.6,3094.4,0.002]
[1767432019144,9.74532168,3094.6,3094.3,0.00080072]
[1767432019349,9.74532168,3094.6,3093.7,0.00080088]
[1767432019350,2.31669561,3094.5,3093.7,2.42097247]
[1767432019652,2.31749649,3094.1,3093.2,2.42017159]
[1767432019947,6.46433304,3093.9,3093.2,2.42017159]
[1767432021247,3.23216652,3093.9,3093.2,2.42017159]
[1767432021547,8.78102865,3093.9,3093.2,2.42017159]
[1767432021750,0.87810287,3093.8,3093.2,2.42017159]
[1767432021938,3.23237547,3093.7,3093.2,2.42017159]
[1767432022854,2.31669561,3093.6,3093.1,0.002]
[1767432023152,2.31669561,3093.5,3093.1,0.002]
[1767432024448,5.54934026,3093.5,3093.1,0.002]
[1767432024630,0.63973403,3093.4,3093.1,0.002]
[1767432026432,3.87246782,3093.4,3093.1,0.002]
[1767432027056,6.18916343,3093.4,3093.1,0.002]
[1767432029218,9.42189722,3093.4,3093.1,0.002]
[1767432029421,2.31669561,3093.3,3093.0,1e-08]
[1767432029633,2.39582349,3093.2,3092.8,0.002]
[1767432031852,0.94218972,3093.3,3092.8,0.002]
[1767432032057,0.94218972,3093.3,3092.8,2.3356512]
[1767432032226,3.23272598,3093.4,3092.8,2.3356512]
[1767432032426,6.46545196,3093.4,3092.8,2.3356512]
[1767432032924,8.86127545,3093.4,3092.8,2.3356512]
[1767432033325,9.70927545,3093.4,3092.8,2.3356512]
[1767432036958,7.31345196,3093.4,3092.8,2.3356512]
[1767432037263,0.7313452,3093.3,3092.8,2.3356512]
[1767432038758,3.23289796,3093.2,3092.8,2.3356512]
[1767432040254,3.96418667,3093.3,3092.8,2.3356512]
[1767432040575,9.59285163,3093.3,3092.8,0.002]
[1767432042069,2.39582349,3093.2,3092.6,2.336452]
[1767432042236,3.43990865,3093.2,3092.6,0.0028008]
[1767432042438,3.43990865,3093.2,3092.8,0.002]
[1767432042951,3.43990865,3093.2,3092.6,0.0028008]
[1767432043158,2.39582349,3093.1,3092.6,0.0028008]
[1767432043332,9.20602838,3093.0,3092.6,0.0028008]
[1767432045766,2.39582349,3092.9,3092.4,0.002]
[1767432045929,6.81100569,3093.0,3092.4,2.3356512]
[1767432047267,3.40130641,3092.9,3092.3,0.002]
[1767432047560,3.40130641,3092.9,3092.3,2.3356512]
[1767432048251,6.46663216,3092.8,3092.3,2.3356512]
[1767432056963,6.46763216,3092.8,3092.3,2.3356512]
[1767432057166,7.48900518,3092.8,3092.3,2.3356512]
[1767432057346,4.2556891,3092.8,3092.3,2.3356512]
[1767432059567,7.48900518,3092.8,3092.3,2.2856512]
[1767432059763,6.46763216,3092.8,3092.3,2.2856512]
[1767432059934,3.23431608,3092.8,3092.3,2.2856512]
[1767432060564,3.23431608,3092.8,3092.2,0.0028008]
[1767432060766,0.001,3092.8,3092.2,2.27434873]
[1767432060985,0.001,3092.8,3092.4,2.27154793]
[1767432062154,0.001,3092.8,3092.3,0.25997325]
[1767432062884,0.001,3092.8,3092.3,3.4938071]
[1767432063164,0.001,3092.8,3092.5,2.27154793]
[1767432064468,0.001,3092.8,3092.6,2.27154793]
[1767432064845,0.001,3092.8,3092.7,2.27154793]
[1767432067470,0.001,3092.8,3092.7,5.50496856]
[1767432070182,0.001,3093.4,3092.8,2.27154793]
[1767432071345,2.35984817,3093.9,3093.2,2.27154793]
[1767432072160,0.001,3093.9,3093.2,2.27154793]
[1767432073486,0.001,3093.9,3093.4,2.27154793]
[1767432075459,0.001,3093.9,3093.6,2.27154793]
[1767432078397,0.001,3093.9,3093.6,5.50394825]
[1767432079787,0.00180088,3094.1,3093.7,2.27154793]
[1767432079961,0.00180088,3094.1,3093.8,2.27154793]
[1767432080789,0.001,3093.9,3093.8,2.27154793]
[1767432081897,0.001,3093.9,3093.7,4.10603104]